Cogmind - Beta 13 @@@ ROGUE MODE // 2024.04.21 @ 15:15:00 Player: Lunace Result: Destroyed by Y-54 Guardian with Flak Gun Performance ------------- Evolutions (4) 2000 Regions Visited (11) 2200 Robots Destroyed (143) 715 Value Destroyed (5119) 5119 Prototype IDs (16) 320 Alien Tech Used (1) 200 Bonus (1309) 1309 TOTAL SCORE: 11863 Bonus ------- Triggered High Security 500 High Alert Combat Kills 305 Follower Combat Kills 1041 Met Data Miner 300 Friendly Fire -837 Cogmind --------- Core Integrity 0/850 Matter 300/300 Energy 4/100 System Corruption 26% Temperature Cool (24) Movement Core (50) Location -6/Factory Parts ------- > --- POWER (2) -------- (None) > --- PROPULSION (4) --- Medium Treads Medium Treads > --- UTILITY (8) ------ Enhanced Optical Array Improved Signal Interpreter Improved Melee Analysis Suite Graphene Brace > --- WEAPON (2) ------- (None) > --- INVENTORY (5) ---- Micro Nuclear Core Improved Terrain Scanner Microactuators Force Field Power Maul Peak State ------------ > --- POWER ------------ Light Angular Momentum Engine Light Angular Momentum Engine > --- PROPULSION ------- Carbon-fiber Leg Flexi-carbon Leg Flexi-carbon Leg Improved VSS Leg > --- UTILITY ---------- Improved Cryofiber Web Medium Storage Unit Energy Well Enhanced Optical Array Improved Signal Interpreter Improved Melee Analysis Suite Improved Medium Armor Plating Force Field > --- WEAPON ----------- Proton Cannon Great Axe > --- INVENTORY -------- Light Angular Momentum Engine Carbon-fiber Leg Carbon-fiber Leg Carbon-fiber Leg Energy Well Improved Signal Interpreter Improved Terrain Scanner Microactuators Power Maul [Rating: 72] Favorites ----------- Power Light Angular Momentum Engine Engine Light Angular Momentum Engine Power Core Light Nuclear Core Propulsion Improved Carbon-fiber Leg Treads Light Treads Leg Improved Carbon-fiber Leg Wheel Compact Wheel Hover Unit Antigrav System Utility Medium Storage Unit Device Improved Shield Generator Storage Medium Storage Unit Processor Advanced Terrain Scan Processor Protection Improved Light Armor Plating Weapon Heavy Pick Energy Gun Shock Rifle Energy Cannon Proton Cannon Ballistic Gun Heavy Assault Rifle Ballistic Cannon Antimatter Cannon Launcher Grenade Launcher Impact Weapon Power Maul Slashing Weapon Great Axe Piercing Weapon Heavy Pick Build | -11 -10 -10 -10 -9 -8 -7 -7 -7 -7 -6 -6 ------- Run | Yrd Mat Min Exi Min Mat Fac Low Low Dat Pro Fac Slots Evolved 8 | . . . . . 4 2 . . . . 2 Power . | . . . . . . . . . . . . Propulsion 2 | . . . . . 2 . . . . . . Utility 6 | . . . . . 2 2 . . . . 2 Weapon . | . . . . . . . . . . . . Parts Attached 196 | 7 7 9 1 . 16 53 6 12 . 1 84 Power 25 | 1 2 1 . . 1 6 1 2 . . 11 Engine 19 | 1 1 1 . . 1 4 1 1 . . 9 Core 6 | . 1 . . . . 2 . 1 . . 2 Reactor . | . . . . . . . . . . . . Propulsion 55 | 2 1 3 . . 7 8 3 3 . . 28 Treads 6 | . . . . . 1 . . 1 . . 4 Leg 36 | 2 1 2 . . 6 4 2 . . . 19 Wheel 4 | . . 1 . . . 2 . . . . 1 Hover 9 | . . . . . . 2 1 2 . . 4 Flight . | . . . . . . . . . . . . Utility 78 | 2 3 . 1 . 6 29 1 4 . 1 31 Device 30 | 1 . . . . 2 11 . 1 . 1 14 Storage 9 | 1 2 . 1 . . . . 1 . . 4 Processor 10 | . 1 . . . 2 1 . . . . 6 Hackware . | . . . . . . . . . . . . Protection 29 | . . . . . 2 17 1 2 . . 7 Artifact . | . . . . . . . . . . . . Weapon 38 | 2 1 5 . . 2 10 1 3 . . 14 Energy Gun 5 | 1 . . . . . . . . . . 4 Energy Cannon 2 | . . . . . . . . . . . 2 Ballistic Gun 13 | 1 . 2 . . 2 4 . . . . 4 Ballistic Cannon 1 | . . . . . . . . . . . 1 Launcher 10 | . 1 2 . . . 4 . 3 . . . Special Weapon . | . . . . . . . . . . . . Impact Weapon 3 | . . 1 . . . 1 . . . . 1 Slashing Weapon 3 | . . . . . . 1 . . . . 2 Piercing Weapon 1 | . . . . . . . 1 . . . . Special Melee Weapon . | . . . . . . . . . . . . Unidentified Prototypes 6 | . . . . . . 1 . 1 . 1 3 Parts Lost 72 | . 1 6 . . 4 12 3 8 . 2 36 Power 10 | . 1 1 . . 1 1 . 1 . 1 4 Propulsion 30 | . . 3 . . 2 3 3 3 . 1 15 Utility 22 | . . . . . . 7 . 2 . . 13 Weapon 10 | . . 2 . . 1 1 . 2 . . 4 Highest Loss Streak 13 | . 1 5 . . 3 3 2 7 . 2 13 To Critical Strikes 2 | . . . . . . . . . . . 2 Average Slot Usage (%) 85 | . 100 95 100 100 83 97 86 74 71 62 78 Engine 5 | . 6 4 14 14 9 6 6 3 . . 4 Core 2 | . 7 8 . . . . . 3 7 2 3 Treads 2 | . . . . . 2 . . 6 7 2 2 Leg 17 | . 28 22 14 14 20 27 26 7 . . 13 Wheel 1 | . . 2 14 14 3 1 . . . . 1 Hover 2 | . . . . . . . . 7 14 14 1 Device 9 | . 5 . . . 3 12 7 6 7 7 13 Storage 8 | . 14 14 14 14 9 7 7 7 7 7 8 Processor 7 | . 8 14 14 14 13 3 7 7 7 7 9 Protection 10 | . . . . . 7 19 15 12 14 14 6 Ballistic Gun 3 | . 14 8 . . 8 7 . . . . 1 Launcher 3 | . 4 14 14 14 4 4 5 3 . . . Impact Weapon 1 | . . 5 14 14 1 . . . . . 2 Slashing Weapon 1 | . . . . . . 1 . . . . 1 Piercing Weapon 2 | . . . . . . . 6 7 7 7 . Naked Turns . | . . . . . . . . . . . . Heaviest Build 67 | 13 20 20 18 18 29 56 54 54 45 45 67 Greatest Support 72 | 20 20 20 10 10 72 72 56 28 22 22 70 Greatest Overweight (x) 5 | . . 5 1 1 1 2 1 2 2 2 3 Average Overweight (x) . | . . . 1 1 . . . 1 2 1 1 Largest Inventory Capacity 10 | 8 10 10 10 10 10 10 10 10 10 10 10 Average Capacity 9 | 7 8 10 10 10 10 10 10 10 10 10 9 Most Carried 10 | 2 8 10 10 10 10 10 10 10 6 6 10 Average Carried 7 | 1 4 8 8 9 9 9 9 7 6 5 7 Final Capacity 10 | 8 10 10 10 10 10 10 10 10 10 10 5 Final Carried 10 | 2 8 8 9 10 10 9 10 6 6 6 5 Class Distribution -------------------- 52% | Scavenger-Mutant 47% | Mutant Dominant Class ---------------- Scavenger-Mutant | -10/Materials Scavenger-Mutant | -10/Mines Scavenger-Mutant | -10/Exiles Scavenger-Mutant | -9/Mines Scavenger-Mutant | -8/Materials Mutant | -7/Factory Mutant | -7/Lower Caves Mutant | -7/Lower Caves Scavenger-Mutant | -7/Data Miner Scavenger-Mutant | -6/Proximity Caves Scavenger-Mutant | -6/Factory Resources | -11 -10 -10 -10 -9 -8 -7 -7 -7 -7 -6 -6 ----------- Run | Yrd Mat Min Exi Min Mat Fac Low Low Dat Pro Fac Matter Collected 5444 | 186 271 211 . 10 208 1005 261 215 . 32 3045 Remotely 1518 | . . . . . . 703 . . . . 815 Salvage Created 5981 | 46 435 228 . . 261 1753 576 745 . 41 1896 Parts 290 | 9 29 13 . . 13 108 20 30 . 1 67 Haulers Intercepted 1 | . 1 . . . . . . . . . . Recyclers Shooed 4 | . 2 . . . . 1 . . . . 1 Parts Field Recycled 54 | . . . . . . . . . . . 54 Retrieved Matter 507 | . . . . . . . . . . . 507 Parts Self-Destructed 21 | . . . . . . . 12 7 . 2 . Prevented 22 | . . . . . . . 7 15 . . . Kills | -11 -10 -10 -10 -9 -8 -7 -7 -7 -7 -6 -6 ------- Run | Yrd Mat Min Exi Min Mat Fac Low Low Dat Pro Fac Combat Hostiles Destroyed 98 | . 7 9 . . 6 24 10 12 . 1 29 Melee 26 | . . 1 . . . 4 4 4 . 1 12 Guns 15 | . 4 . . . 2 7 . . . . 2 Cannons 3 | . . . . . . . . . . . 3 AOE 39 | . 3 7 . . 4 12 4 7 . . 2 Classes Destroyed 21 | 1 6 2 . . . 4 1 4 . . 3 Worker 11 | . . 2 . . . 6 . . . . 3 Builder 9 | . . . . . . 7 . . . . 2 Tunneler 6 | 3 . . . . . 1 . . . . 2 Hauler 1 | . 1 . . . . . . . . . . Recycler 9 | . 1 . . . . 4 . . . . 4 Minesweeper 1 | . . . . . . . . 1 . . . Mechanic 2 | . 1 . . . . . . 1 . . . Operator 1 | . . . . . . 1 . . . . . Watcher 4 | . 2 . . . 1 1 . . . . . Swarmer 22 | . 3 3 . . . 4 2 4 . . 6 Cutter 1 | . . . . . . . . . . . 1 Saboteur 1 | . . . . . . . . . . . 1 Grunt 39 | . 4 4 . . 4 10 4 5 . . 8 Brawler 2 | . . . . . . . 1 . . . 1 Duelist 3 | . . . . . . . . 2 . . 1 Researcher 1 | . . . . . . . . 1 . . . Sentry 15 | . . 2 . . 2 4 2 1 . . 4 Specialist 2 | . . . . . . . . . . . 2 Hunter 3 | . . . . . . 2 . . . 1 . Programmer 10 | . . . . . . 4 1 . . . 5 Samaritan 1 | . . . . . . . . 1 . . . Best Kill Streak 12 | 3 3 4 . . 6 12 4 6 . 1 8 Combat Bots Only 6 | . 3 3 . . 5 4 4 6 . 1 3 Max Kills in Single Turn 3 | 1 2 3 . . 1 3 3 2 . 1 1 Gunslinging . | . . . . . . . . . . . . Exploded 3 | . 2 3 . . 1 3 3 2 . . 1 Melee 1 | . . 1 . . . 1 1 1 . 1 1 Uniques/NPCs Destroyed . | . . . . . . . . . . . . Combat | -11 -10 -10 -10 -9 -8 -7 -7 -7 -7 -6 -6 -------- Run | Yrd Mat Min Exi Min Mat Fac Low Low Dat Pro Fac Hostile Shots Fired 1373 | . 36 47 . . 28 492 46 69 . 10 645 Missed 477 | . 8 13 . . 9 188 10 21 . . 228 Damage Taken 12102 | . 354 546 . . 336 2967 796 1095 . 180 5828 Core 1557 | . 48 124 . . 36 221 104 170 . . 854 Absorbed by Shields 1397 | . . . . . . 552 . 88 . . 757 Ignored by Resistances 30 | . . . . . . . . . . . 30 Core Remaining (%) 63 | 100 . . . 31 93 . . . . 29 . Volleys Fired 237 | 8 33 11 . . 16 99 9 11 . . 50 Largest 2 | 1 2 2 . . 1 2 1 1 . . 2 Hottest 83 | 20 60 60 . . 30 53 39 39 . . 83 Shots Fired 332 | 8 64 15 . . 16 157 10 11 . . 51 Gun 245 | 8 62 2 . . 10 121 . . . . 42 Cannon 9 | . . . . . . . . . . . 9 Launcher 78 | . 2 13 . . 6 36 10 11 . . . Special . | . . . . . . . . . . . . Kinetic 207 | 8 31 2 . . 10 121 . . . . 35 Thermal . | . . . . . . . . . . . . Explosive 28 | . 2 13 . . 6 7 . . . . . Electromagnetic 97 | . 31 . . . . 29 10 11 . . 16 Robot Hit Streak 13 | 8 12 13 . . 4 9 2 3 . . 5 Robot Miss Streak 4 | . 4 1 . . 4 4 3 2 . . 3 Penetration Max 1 | . . . . . . . . . . . 1 Secondary Targets 1 | . 1 . . . . . . . . . . Max Gunslinging Chain 1 | . 1 . . . . . . . . . . Shots Hit Robots 354 | 8 38 21 . . 8 133 16 26 . 6 98 Core Hits 211 | 3 20 17 . . 20 77 14 25 . 2 33 Critical Kills 2 | . . 1 . . . . . . . . 1 Critical Parts Destroyed 20 | . . 1 . . . 2 . . . . 17 Critical Strikes 30 | . 1 2 . . . 5 1 . . . 21 Destroy 4 | . . . . . . . . . . . 4 Corrupt 1 | . 1 . . . . . . . . . . Smash 19 | . . 2 . . . 2 . . . . 15 Sever 3 | . . . . . . 3 . . . . . Impale 3 | . . . . . . . 1 . . . 2 Melee Attacks 188 | . . 9 . . . 42 19 24 . 6 88 Impact 64 | . . 9 . . . 6 . . . . 49 Slashing 47 | . . . . . . 36 . . . . 11 Piercing 77 | . . . . . . . 19 24 . 6 28 Sneak Attacks 29 | . . 2 . . . 6 5 4 . . 12 Combat Hostiles . | . . . . . . . . . . . . Follow-up Attacks . | . . . . . . . . . . . . Damage Inflicted 14087 | 98 748 724 . . 590 4702 1134 1695 . 168 4228 Guns 2591 | 98 551 11 . . 125 1302 . . . . 504 Cannons 190 | . . . . . . . . . . . 190 Explosions 4990 | . 197 479 . . 465 1999 526 975 . . 349 Melee 6309 | . . 234 . . . 1401 608 720 . 168 3178 Ramming 7 | . . . . . . . . . . . 7 Kinetic 2282 | 98 219 11 . . 125 1302 . . . . 527 Thermal 506 | . . . . . . 34 . 178 . . 294 Explosive 1765 | . 197 479 . . 465 624 . . . . . Electromagnetic 3218 | . 332 . . . . 1341 526 797 . . 222 Impact 2594 | . . 234 . . . 173 . . . . 2187 Slashing 1546 | . . . . . . 1228 . . . . 318 Piercing 2169 | . . . . . . . 608 720 . 168 673 Highest Corruption 26 | . . . . . . 4 7 8 8 8 26 Average Corruption 11 | . . . . . . 2 4 7 8 8 19 Corruption Purged 5 | . . . . . . 5 . . . . . Corruption Blocked . | . . . . . . . . . . . . Effects 252 | . . . . . . 27 17 36 3 18 151 Message Errors 59 | . . . . . . 7 2 10 2 4 34 Matter Fused 64 | . . . . . . 6 . 10 1 5 42 Heat Flow Errors 37 | . . . . . . 4 2 6 . 1 24 Energy Discharges 31 | . . . . . . 2 7 6 . 2 14 Parts Rejected 4 | . . . . . . 1 1 . . . 2 Parts Fused 2 | . . . . . . . . . . . 2 Data Loss (minor) 25 | . . . . . . 3 3 3 . 4 12 Data Loss (major) 10 | . . . . . . 1 . . . 2 7 Misfires 7 | . . . . . . 3 1 . . . 3 Alerts 4 | . . . . . . . 1 1 . . 2 Misdirections 5 | . . . . . . . . . . . 5 Weapon Failures 4 | . . . . . . . . . . . 4 Overload Shots . | . . . . . . . . . . . . Overflow Damage 1705 | . . 49 . . 2 319 28 63 . 15 1229 Projectiles . | . . . . . . . . . . . . Explosions 80 | . . . . . 2 23 13 . . . 42 Melee 1625 | . . 49 . . . 296 15 63 . 15 1187 Knockbacks 11 | . . 1 . . . . . . . . 10 Impact 9 | . . 1 . . . . . . . . 8 Kinetic 2 | . . . . . . . . . . . 2 Secondary . | . . . . . . . . . . . . Self-Inflicted Damage 595 | . . 116 . . 3 155 56 225 . . 40 Shots 32 | . . 11 . . 1 6 5 8 . . 1 Rammed 2 | . . . . . . . . . . . 2 Targets Rammed 2 | . . . . . . . . . . . 2 Kicked . | . . . . . . . . . . . . Crushed . | . . . . . . . . . . . . Highest Temperature 286 | . 132 51 . . . 204 286 281 . 156 283 Average Temperature 76 | . 70 28 . . . 56 79 74 . 114 89 Received Heat Transfer 2587 | . 207 207 . . 141 729 126 245 . . 932 Effects 1 | . . . . . . . 1 . . . . Energy Bleed 1 | . . . . . . . 1 . . . . Siege Activations . | . . . . . . . . . . . . Robots Corrupted 4 | . . . . . . 1 2 1 . . . Combat Hostiles 4 | . . . . . . 1 2 1 . . . Parts Fried 33 | . . 1 . . . 4 5 1 . . 22 Impact Corruptions 43 | . . 2 . . . 5 . . . . 36 Robots Melted . | . . . . . . . . . . . . Combat Hostiles . | . . . . . . . . . . . . Parts Melted . | . . . . . . . . . . . . Heat Transferred 474 | . . . . . . 50 . 300 . . 124 Parts Sabotaged . | . . . . . . . . . . . . Parts Stolen . | . . . . . . . . . . . . Parts Stripped . | . . . . . . . . . . . . Power Chain Reactions 7 | . . . . . . 3 . 4 . . . Alert | -11 -10 -10 -10 -9 -8 -7 -7 -7 -7 -6 -6 ------- Run | Yrd Mat Min Exi Min Mat Fac Low Low Dat Pro Fac Peak Influence 1782 | 15 226 285 . . 238 764 . . . . 1782 Initial 107 | . 9 9 . . . 107 . . . . . Average 346 | 2 79 163 . . 134 277 . . . . 519 Maximum Alert Level 5 | . 1 1 . . 1 3 . . . . 5 Low Security (%) 53 | 100 96 79 . 100 45 53 . . . . 39 Level 1 16 | . 3 20 . . 54 12 . . . . 18 Level 2 17 | . . . . . . 32 . . . . 13 Level 3 3 | . . . . . . 1 . . . . 6 Level 4 5 | . . . . . . . . . . . 13 Level 5 . | . . . . . . . . . . . . High Security 3 | . . . . . . . . . . . 7 Max Security . | . . . . . . . . . . . . Squads Dispatched 34 | . 1 . . . . 11 . 1 . . 21 Investigation 2 | . . . . . . . . . . . 2 Extermination 10 | . . . . . . 5 . . . . 5 Reinforcement 8 | . 1 . . . . 3 . . . . 4 Assault 11 | . . . . . . . . 1 . . 10 Garrison 3 | . . . . . . 3 . . . . . Intercept . | . . . . . . . . . . . . Searches Triggered . | . . . . . . . . . . . . Construction Impeded 2 | . . . . . . 2 . . . . . Haulers Reinforced . | . . . . . . . . . . . . Active Scanning Responses . | . . . . . . . . . . . . Cargo Convoy Interrupts 1 | . . . . . . . . . . . 1 Stealth | -11 -10 -10 -10 -9 -8 -7 -7 -7 -7 -6 -6 --------- Run | Yrd Mat Min Exi Min Mat Fac Low Low Dat Pro Fac Distress Signals 5 | . 2 . . . 1 . . . . . 2 Communications Jammed . | . . . . . . . . . . . . Distress Signals . | . . . . . . . . . . . . Times Spotted 198 | . 12 10 . . 11 44 9 23 . 2 87 Peak Tracking Total 17 | . 4 4 . . 7 4 5 7 . 2 17 Tactical Retreats 17 | . . 1 . . . 8 . 2 . . 6 Traps | -11 -10 -10 -10 -9 -8 -7 -7 -7 -7 -6 -6 ------- Run | Yrd Mat Min Exi Min Mat Fac Low Low Dat Pro Fac Traps Triggered 6 | . . . . . . 2 . . . . 4 Indirectly . | . . . . . . . . . . . . Trap Hack Attempts . | . . . . . . . . . . . . Triggered . | . . . . . . . . . . . . Disarmed . | . . . . . . . . . . . . Reprogrammed . | . . . . . . . . . . . . Reused 1 | . . . . . . . . . . . 1 Traps Extracted . | . . . . . . . . . . . . Installed 1 | . . . . . . . . . . . 1 Triggered 2 | . . . . . . . . . . . 2 Most Traps Carried 1 | . . . . . . . . 1 1 1 1 Machines | -11 -10 -10 -10 -9 -8 -7 -7 -7 -7 -6 -6 ---------- Run | Yrd Mat Min Exi Min Mat Fac Low Low Dat Pro Fac Machines Disabled 55 | . . 3 . . . 7 2 1 . . 42 Max in Single Turn 19 | . . 2 . . . 2 1 1 . . 19 Machines Repaired . | . . . . . . . . . . . . Machines Dismantled . | . . . . . . . . . . . . Machines Sabotaged . | . . . . . . . . . . . . Overloaded Fab Kills . | . . . . . . . . . . . . Hacking | -11 -10 -10 -10 -9 -8 -7 -7 -7 -7 -6 -6 --------- Run | Yrd Mat Min Exi Min Mat Fac Low Low Dat Pro Fac Machines Accessed 34 | . 3 1 1 . . 11 2 1 3 . 12 Terminals 13 | . 3 1 . . . 4 . . . . 5 Fabricators 6 | . . . . . . 4 . . . . 2 Repair Stations 2 | . . . . . . 1 . . . . 1 Recycling Units 4 | . . . . . . 1 . . . . 3 Scanalyzers . | . . . . . . . . . . . . Garrison Access 2 | . . . . . . 1 . . . . 1 Total Hacks 88 | . 9 2 1 . . 26 2 1 24 . 23 Successful 48 | . 4 1 1 . . 10 2 1 24 . 5 Failed 40 | . 5 1 . . . 16 . . . . 18 Catastrophic 11 | . 2 . . . . 4 . . . . 5 Database Lockouts . | . . . . . . . . . . . . Manual 41 | . 9 2 . . . 16 . . . . 14 Terminals 32 | . 9 2 . . . 11 . . . . 10 Fabricators 9 | . . . . . . 6 . . . . 3 Repair Stations 3 | . . . . . . 1 . . . . 2 Recycling Units 12 | . . . . . . 6 . . . . 6 Scanalyzers . | . . . . . . . . . . . . Garrison Access 4 | . . . . . . 2 . . . . 2 Terminal Hacks 34 | . 3 1 1 . . 1 2 1 24 . 1 Record 7 | . . . 1 . . . . . 6 . . Part Schematic 12 | . . . . . . . . . 12 . . Robot Schematic 3 | . . . . . . . . . 3 . . Robot Analysis 2 | . 2 . . . . . . . . . . Prototype ID Bank 3 | . . . . . . . . . 3 . . Open Door 3 | . . . . . . . 2 1 . . . Terminal Index 2 | . 1 . . . . 1 . . . . . Registered Components 1 | . . . . . . . . . . . 1 Zone Layout 1 | . . 1 . . . . . . . . . Fabricator Hacks 5 | . . . . . . 4 . . . . 1 Network Status 4 | . . . . . . 3 . . . . 1 Build 1 | . . . . . . 1 . . . . . Repair Station Hacks . | . . . . . . . . . . . . Recycling Unit Hacks 2 | . . . . . . 1 . . . . 1 Process 1 | . . . . . . . . . . . 1 Report Inventory 1 | . . . . . . 1 . . . . . Scanalyzer . | . . . . . . . . . . . . Garrison Access Hacks . | . . . . . . . . . . . . Unauthorized Hacks 7 | . 1 . . . . 4 . . . . 2 Terminals 4 | . 1 . . . . 2 . . . . 1 Botnet 1 | . . . . . . 1 . . . . . Operators 3 | . 1 . . . . 1 . . . . 1 Fabricators . | . . . . . . . . . . . . Repair Stations . | . . . . . . . . . . . . Recycling Units 3 | . . . . . . 2 . . . . 1 Monitor 2 | . . . . . . 1 . . . . 1 Recyclers 1 | . . . . . . 1 . . . . . Scanalyzers . | . . . . . . . . . . . . Garrison Access . | . . . . . . . . . . . . Data Cores Recovered . | . . . . . . . . . . . . Used . | . . . . . . . . . . . . Hacking Detections 25 | . 3 1 . . . 10 . . . . 11 Full Trace Events 1 | . . . . . . . . . . . 1 Feedback Events . | . . . . . . . . . . . . Feedback Blocked . | . . . . . . . . . . . . Robot Schematics Acquired 3 | . . . . . . . . . 3 . . Robots Built 1 | . . . . . . 1 . . . . . Authchips . | . . . . . . . . . . . . Time 40 | . . . . . . 40 . . . . . Total Robot Build Rating 1 | . . . . . . 1 . . . . . Part Schematics Acquired 12 | . . . . . . . . . 12 . . Parts Built . | . . . . . . . . . . . . Authchips . | . . . . . . . . . . . . Time . | . . . . . . . . . . . . Total Part Build Rating . | . . . . . . . . . . . . Parts Repaired . | . . . . . . . . . . . . Time . | . . . . . . . . . . . . Parts Recycled . | . . . . . . . . . . . . Recycled Matter 5 | . . . . . . . . . . . 5 Retrieved Matter . | . . . . . . . . . . . . Retrieved Components . | . . . . . . . . . . . . Parts Scanalyzed . | . . . . . . . . . . . . Part Schematics Acquired . | . . . . . . . . . . . . Parts Damaged . | . . . . . . . . . . . . Bothacking | -11 -10 -10 -10 -9 -8 -7 -7 -7 -7 -6 -6 ------------ Run | Yrd Mat Min Exi Min Mat Fac Low Low Dat Pro Fac Used RIF Installer . | . . . . . . . . . . . . Robots Hacked . | . . . . . . . . . . . . Non-combat . | . . . . . . . . . . . . Combat . | . . . . . . . . . . . . Robot Hacks Applied . | . . . . . . . . . . . . Relay Couplers Released . | . . . . . . . . . . . . Fabnet Peak Effective % . | . . . . . . . . . . . . Robots Rewired 2 | . . . . . . . . 2 . . . Allies Hacked . | . . . . . . . . . . . . Hacks Repelled . | . . . . . . . . . . . . Allies | -11 -10 -10 -10 -9 -8 -7 -7 -7 -7 -6 -6 -------- Run | Yrd Mat Min Exi Min Mat Fac Low Low Dat Pro Fac Total Allies 8 | . . . . 3 . 1 . 2 . 1 1 Largest Group 3 | . . . . 3 3 1 . 2 . 1 1 Highest-Rated Group 99 | . . . . 40 40 6 . 52 . 96 99 Highest-Rated Ally 99 | . . . . 16 16 6 . 32 . 96 99 Total Orders . | . . . . . . . . . . . . Ally Attacks 96 | . . . . . 34 . . 7 . 8 47 Total Damage 4422 | . . . . . 265 . . 146 . 355 3656 Kills 33 | . . . . . 3 . . . . 1 29 Allies Corrupted . | . . . . . . . . . . . . Allies Melted 1 | . . . . . . . . 1 . . . Intel | -11 -10 -10 -10 -9 -8 -7 -7 -7 -7 -6 -6 ------- Run | Yrd Mat Min Exi Min Mat Fac Low Low Dat Pro Fac Robot Analysis Total 2 | . 2 . . . . . . . . . . Derelict Logs Recovered 6 | . . . . 2 . . . 2 . 2 . Drone Launches . | . . . . . . . . . . . . Drone Recoveries . | . . . . . . . . . . . . Exploration | -11 -10 -10 -10 -9 -8 -7 -7 -7 -7 -6 -6 ------------- Run | Yrd Mat Min Exi Min Mat Fac Low Low Dat Pro Fac Turns Passed 10923 | 82 488 461 149 303 349 2853 709 1216 157 582 3574 Spaces Moved 6226 | 50 242 326 154 302 208 1731 426 533 81 285 1888 Core 14 | 9 . 4 . . . . . . . . 1 Treads 477 | . . . . . . . . 82 . . 395 Legs 3665 | 41 242 254 . . 140 1637 426 293 . . 632 Wheels 1241 | . . 68 154 302 68 94 . . . . 555 Hover 829 | . . . . . . . . 158 81 285 305 Flight . | . . . . . . . . . . . . Fastest Speed 50 | 50 120 95 95 95 95 115 120 160 196 116 50 Average Speed 137 | 107 120 121 95 95 126 123 143 196 196 145 145 Slowest Speed 400 | 120 120 300 95 95 190 190 190 240 196 196 400 Overloaded Moves . | . . . . . . . . . . . . Propulsion Burnouts . | . . . . . . . . . . . . Robots Hopped 2 | . . . . . . . 2 . . . . Cave-ins Triggered . | . . . . . . . . . . . . Exploration Rate (%) 52 | 3 48 77 48 81 29 48 54 70 70 55 49 Regions Visited 11 Branch Regions 7 Pre-discovered Areas 5 | . . . 1 1 . . . . 1 2 . Known Exits Taken 2 | . . . . . 1 . . . . 1 . Unknown Exits Taken 9 | 1 1 1 1 1 . 1 1 1 1 . . Scrap Searched 8 | . . 1 . 1 . . 2 4 . . . Spaces Dug 15 | . . . . . . 5 . 1 . . 9 Terrain Destroyed 264 | . 22 57 . . 31 88 . 24 . . 42 Melee 15 | . . . . . . 5 . 1 . . 9 Projectile 4 | . . . . . . . . . . . 4 AOE 245 | . 22 57 . . 31 83 . 23 . . 29 Terrain Rammed 1 | . . . . . . . . . . . 1 Walls Destroyed . | . . . . . . . . . . . . Machines Disabled . | . . . . . . . . . . . . Actions | -11 -10 -10 -10 -9 -8 -7 -7 -7 -7 -6 -6 --------- Run | Yrd Mat Min Exi Min Mat Fac Low Low Dat Pro Fac Total 7902 | 66 375 359 157 318 278 2225 477 639 80 441 2487 Wait 808 | . 82 . . 14 13 231 7 40 . 146 275 Move 6211 | 49 241 325 153 301 207 1730 421 532 80 284 1888 Hop 2 | . . . . . . . 2 . . . . Pick Up 95 | 2 7 4 1 2 12 26 4 3 . 1 33 Fast Attach 108 | 7 2 2 . . 9 23 4 6 . 1 54 Attach 57 | . 1 5 . . 4 15 2 7 . . 23 Detach 15 | . . 1 . . 1 3 1 1 . 1 7 Swap 32 | . 4 2 1 . 3 15 . . . . 7 Drop 123 | . 5 . 2 1 13 41 8 2 . 2 49 Fire 237 | 8 33 11 . . 16 99 9 11 . . 50 Melee 188 | . . 9 . . . 42 19 24 . 6 88 Ram 2 | . . . . . . . . . . . 2 Kick . | . . . . . . . . . . . . Crush 2 | . . . . . . . . . . . 2 Escape Stasis 8 | . . . . . . . . . . . 8 Rewire 13 | . . . . . . . . 13 . . . Trap 1 | . . . . . . . . . . . 1 Miscellaneous . | . . . . . . . . . . . . Route ------- -11/Scrapyard -10/Materials (discovered 3 exits: [*Mat x2] / *Min) -10/Mines (discovered 3 exits: [*Mat x2] / *Exi) -10/Exiles -9/Mines -8/Materials -7/Factory (discovered 2 exits: *Fac / *Low) -7/Lower Caves -7/Lower Caves -7/Data Miner -6/Proximity Caves -6/Factory (discovered 3 exits: *Fac x2 / Low) History --------- Turn | Location | Event 4 | -11/Scrapyard | Discovered new exit (range 14) 83 | -11/Scrapyard | Entered Materials 409 | -10/Materials | Discovered new exit (range 15) 463 | -10/Materials | Discovered new exit (range 16) 534 | -10/Materials | Discovered new exit (range 8) 571 | -10/Materials | Entered Mines 582 | -10/Mines | Build established: Scavenger-Mutant 600 | -10/Mines | Discovered new exit (range 12) 855 | -10/Mines | Discovered new exit (range 8) 892 | -10/Mines | Core integrity fell below 50% 928 | -10/Mines | Lost 5 parts (1p2n2w) 1027 | -10/Mines | Deemed a non-threat by the Exiles lab entrance 1027 | -10/Mines | Discovered new exit (range 5) 1032 | -10/Mines | Entered Exiles 1055 | -10/Exiles | Met 8R-AWN 1070 | -10/Exiles | Met EX-HEX 1109 | -10/Exiles | Met EX-DEC 1113 | -10/Exiles | Learned location of Zion (-6) 1171 | -10/Exiles | Discovered new exit (range 14) 1181 | -10/Exiles | Entered Mines 1186 | -9/Mines | Met a Derelict bent on vengeance 1279 | -9/Mines | A weapon hastily lodged in a ceiling crevice suddenly fell to the ground 1294 | -9/Mines | Learned 2 Materials zone layouts 1408 | -9/Mines | Assisted by bots powering up and referring to "LRC-V3" 1409 | -9/Mines | Learned location of Storage (-7) 1462 | -9/Mines | Discovered new exit (range 14) 1484 | -9/Mines | Entered Materials 1484 | -8/Materials | Accompanied by 3 allies 1484 | -8/Materials | Evolved 4 slots: Propulsion x2, Utility x2 1667 | -8/Materials | Lost 3 parts (1p2n) 1744 | -8/Materials | Discovered new exit (range 16) 1799 | -8/Materials | Identified exit to Factory 1833 | -8/Materials | Entered Factory 1833 | -7/Factory | Evolved 2 slots: Utility x2 2055 | -7/Factory | Build established: Mutant 2286 | -7/Factory | Fabricated K-01 Serf? 3054 | -7/Factory | Discovered new exit (range 7) 3062 | -7/Factory | Identified exit to Factory 3886 | -7/Factory | Garrison activated, responded to threat 4023 | -7/Factory | Lost 3 parts (3u) 4251 | -7/Factory | Build established: Scavenger-Mutant 4533 | -7/Factory | Discovered new exit (range 16) 4559 | -7/Factory | Build established: Mutant 4686 | -7/Factory | Entered Lower Caves 4801 | -7/Lower Caves | Found Prototype Device 5202 | -7/Lower Caves | Attracted the attention of an 0b10 outpost 5338 | -7/Lower Caves | Discovered new exit (range 15) 5395 | -7/Lower Caves | Entered another Lower Caves area 5893 | -7/Lower Caves | Found Alien Artifact 5893 | -7/Lower Caves | Identified Core Expander 5893 | -7/Lower Caves | Installed Core Expander, added new Power slot 5974 | -7/Lower Caves | Core integrity fell below 50% 5975 | -7/Lower Caves | Attracted the attention of an 0b10 outpost 6035 | -7/Lower Caves | Lost 7 parts (1p3n2u1w) 6560 | -7/Lower Caves | Discovered new exit (range 13) 6604 | -7/Lower Caves | Build established: Scavenger-Mutant 6611 | -7/Lower Caves | Entered Data Miner 6611 | -7/Data Miner | Discovered new exit (range 6) 6649 | -7/Data Miner | Met Data Miner 6688 | -7/Data Miner | Learned location of Section 7 (-3) 6688 | -7/Data Miner | Acquired the access code to Warlord's prototype stash 6725 | -7/Data Miner | Received God Mode back door access code from Data Miner 6768 | -7/Data Miner | Entered Proximity Caves 6938 | -6/Proximity Caves | Escorted by Enhanced Grunt 7003 | -6/Proximity Caves | Found Prototype Device 7003 | -6/Proximity Caves | Identified Exp. Thermal Shield 7260 | -6/Proximity Caves | Learned location of Extension (-4) 7289 | -6/Proximity Caves | Discovered exit to Factory (range 16) 7350 | -6/Proximity Caves | Entered Factory 7350 | -6/Factory | Evolved 2 slots: Utility x2 7351 | -6/Factory | Identified exit to Lower Caves 7602 | -6/Factory | Lost 3 parts (2n1u) 7960 | -6/Factory | System corruption reached 10% 7990 | -6/Factory | Lost 5 parts (1n3u1w) 8048 | -6/Factory | Identified Heart of Steel 8068 | -6/Factory | Lost 3 parts (1p1n1u) 8386 | -6/Factory | Discovered new exit (range 16) 8496 | -6/Factory | Build established: Mutant 8720 | -6/Factory | Cargo convoy interrupted 8953 | -6/Factory | Build established: Scavenger-Mutant 9025 | -6/Factory | Lost 3 parts (1n2u) 9864 | -6/Factory | Heart of Steel transformed into Warbot 10065 | -6/Factory | Core integrity fell below 50% 10150 | -6/Factory | First assault squad dispatched 10401 | -6/Factory | Discovered new exit (range 21) 10523 | -6/Factory | Identified exit to Factory 10644 | -6/Factory | High security lockdown imminent 10724 | -6/Factory | High security lockdown engaged 10886 | -6/Factory | Core integrity fell below 20% 10924 | -6/Factory | Destroyed by Y-54 Guardian with Flak Gun Last Messages --------------- 10911_ Gauss Rifle destroyed. 10911_ G-67 Veteran destroyed. 10911_ G-50 Soldier destroyed. 10911_ P-60 Hacker destroyed. 10911_ G-50 Soldier destroyed. 10911_ L-41 Fighter destroyed. 10911_ G-50 Soldier destroyed. 10911_ H-66 Slayer destroyed. 10911_ Penetrated by Slug. 10914_ Slug penetrates L-41 Fighter. 10914_ L-41 Fighter destroyed. 10914_ Penetrated by Slug. 10917_ Imp. VSS Leg destroyed. 10918_ A-15 Conveyor exits level. 10921_ Penetrated by Slug. 10921_ Flexi-carbon Leg destroyed. 10922_ Dropped Energy Well. 10923_ Dropped Med. Storage Unit. 10924_ Penetrated by Slug. 10924_ Imp. Cryofiber Web destroyed. Map ----- +----------------------------------------------------+ | ???# ?????????????????????????????? | | ???# ?????????????????????????????? | | ???# #?????????????????????????????? | | #### #?????????????????????????????? | | !! # ##????????????????????????????? | | ! # ?????????????????????????????? | | # #?????????????????????????????? | | # #?????????????????????????????? | | # #?????????????????????????????? | | # #?????????????????????????????? | | #+## #???????#########?????????????? | | #?????? #?????????????? | | #### #??#???? #?????????????? | | ???# #??# ??? #?????????????? | | ??## ##?# ??? #?????????????? | | ??# =[ #?# """ #?????????????? | | ??# !%* #?# """ #?????????????? | | ??# [ #?# """ #?????????????? | | ??# #?# #?????????????? | | ??# #?# """ #?????????????? | | ??### ###?# """"" #?????????????? | | ????# #???# """"" ??????#######??? | | ????# #??## ????????# *= #??? | | ????# ####;;;;;##+########### !!]#??? | | ????# ! Y!%<% #??? | | ##### l /!@ Y = #??? | | [ / ! Y #??? | | ####### Y [ #??? | | % =%= #??? | | """ % % % ;##########+###??? | | """ % " = "#??? | | """ ; "% / ##??? | | ; h % "% "#??? | | """ ; %[ "* ##??? | | """ ; #! #???? | | """ # # ! * #???? | | #^ ^ """""### !] %/ =#???? | | # ^ ^######?# !] /=#???? | | # #??????# !] %#???? | | # #??????# #???? | | #######" #??????# #???? | | ??????## #??????# #???? | | ???????# * #??????############"#???? | | ???????#!| #?????????????????###???? | | ########% #???????????????????????? | | # [!!! #???????????????????????? | | # %%= #???????????????????????? | | # %! #???????????????????????? | | # #???????????????????????? | | # #???????????????????????? | +----------------------------------------------------+ Best States ------------- Heat Dissipation 48 Energy Generation 31 Energy Capacity 690 Matter Stores 331 Matter Capacity 550 Sight Range 22 Terrain Scan Range 16 Terrain Scan Density 210 Jamming Range 12 Base Temperature (-) 150 EM Shielding 2 Armor Coverage 825 Resistance: TH 30 Melee Speed Boost 20 Evasion (%) 55 Targeting Accuracy 8 Melee Accuracy 6 Core Analysis 6 Recoil Reduction 2 Item Schematics ----------------- Combat Drone Bay | -7/Data Miner | Free Lgt. Regenerative Plating | -7/Data Miner | Free Cld. Aerolev Unit | -7/Data Miner | Free Exp. Weapon Shielding | -7/Data Miner | Free Imp. Lightning Gun | -7/Data Miner | Free Hvy. Treads | -7/Data Miner | Free Imp. Transmission Jammer | -7/Data Miner | Free Mass Driver | -7/Data Miner | Free Imp. Medium Treads | -7/Data Miner | Free Neutrino Core | -7/Data Miner | Free Myomer Leg | -7/Data Miner | Free Lrn. Sensor Array | -7/Data Miner | Free Robot Schematics ------------------ M-14 Sweeper | -7/Data Miner | Free S-27 Virus | -7/Data Miner | Free B-48 Gladiator | -7/Data Miner | Free Fabricated ------------ K-01 Serf | x1 | -7/Factory | Preloaded Alien Tech Used ----------------- Core Expander Achievements -------------- None Challenges ------------ None Game ------ Seed SmallAdvancedSteel Manual? 0 Play Time 01:41:25 Cumulative 106.9 hours Start 2024.04.21 @ 13:32:36 End 2024.04.21 @ 15:15:00 Sessions 1 Manual Loads 0 Difficulty Rogue Special Mode None Game No. 114 Rogue 109 Adventurer 5 Explorer 0 Win Type - Total 3 Types 2/0/0/1/0/0/0/0/0 Lore% 49 Gallery% 64 Achievement% 48 Wizard Run 0 Options --------- Layout 1 ASCII 0 Keyboard 0 Movement Mouse Keybinds 0 Fullscreen 1 Font 24/Terminus Map View 50x35 Zoom Use 0% Tactical HUD 1 Map Filters NONE Filters NONE Steam 1 RUN: cbf381a3-10b7-4079-ab11-bac3125688c3